[Event "Titled Tuesday Blitz November 9 2021"]
[White "Maghsoodloo, Parham"]
[Black "Ten Hertog, Hugo"]
[WhiteFideId "12539929"]
[BlackFideId "1026356"]
[WhiteElo "2601"]
[BlackElo "2493"]
[Result "1-0"]
[Round "06"]
[TimeControl "180+1"]
[Date "2021.11.09"]
[WhiteClock "0:01:16"]
[BlackClock "0:00:03"]

1. d4 {[%clk 0:03:00]}  g6 {[%clk 0:02:55]} 2. e4 {[%clk 0:03:00]}  Bg7 {[%clk 0:02:56]} 3. Nc3 {[%clk 0:03:01]}  d6 {[%clk 0:02:56]} 4. Nf3 {[%clk 0:03:01]}  a6 {[%clk 0:02:56]} 5. a4 {[%clk 0:03:00]}  b6 {[%clk 0:02:55]} 6. Bc4 {[%clk 0:03:00]}  e6 {[%clk 0:02:55]} 7. O-O {[%clk 0:03:00]}  Ne7 {[%clk 0:02:55]} 8. Re1 {[%clk 0:03:01]}  Nd7 {[%clk 0:02:55]} 9. Bf4 {[%clk 0:03:00]}  h6 {[%clk 0:02:55]} 10. Qd2 {[%clk 0:02:56]}  Bb7 {[%clk 0:02:44]} 11. h4 {[%clk 0:02:50]}  Nf6 {[%clk 0:02:39]} 12. Rad1 {[%clk 0:02:48]}  Nxe4 {[%clk 0:02:29]} 13. Nxe4 {[%clk 0:02:40]}  Bxe4 {[%clk 0:02:30]} 14. Rxe4 {[%clk 0:02:31]}  d5 {[%clk 0:02:30]} 15. Bxd5 {[%clk 0:02:20]}  Nxd5 {[%clk 0:02:27]} 16. Be5 {[%clk 0:02:20]}  O-O {[%clk 0:02:22]} 17. c4 {[%clk 0:02:19]}  Nf6 {[%clk 0:02:14]} 18. Ree1 {[%clk 0:02:15]}  Qd7 {[%clk 0:02:10]} 19. Qc3 {[%clk 0:02:02]}  Nh5 {[%clk 0:01:32]} 20. d5 {[%clk 0:01:57]}  exd5 {[%clk 0:01:28]} 21. Bxg7 {[%clk 0:01:56]}  Nxg7 {[%clk 0:01:29]} 22. Ne5 {[%clk 0:01:57]}  Qxa4 {[%clk 0:01:20]} 23. Rxd5 {[%clk 0:01:45]}  Rad8 {[%clk 0:01:10]} 24. b3 {[%clk 0:01:31]}  Qa3 {[%clk 0:01:04]} 25. Nd7 {[%clk 0:01:24]}  Rxd7 {[%clk 0:00:24]} 26. Rxd7 {[%clk 0:01:24]}  Qc5 {[%clk 0:00:25]} 27. Qf6 {[%clk 0:01:22]}  Nh5 {[%clk 0:00:23]} 28. Qf3 {[%clk 0:01:21]}  Qa3 {[%clk 0:00:09]} 29. g3 {[%clk 0:01:18]}  Qb2 {[%clk 0:00:07]} 30. Ree7 {[%clk 0:01:18]}  Nf6 {[%clk 0:00:07]} 31. Rxc7 {[%clk 0:01:18]}  Rd8 {[%clk 0:00:06]} 32. Rxf7 {[%clk 0:01:18]}  Qb1+ {[%clk 0:00:03]} 33. Kg2 {[%clk 0:01:16]}  Rd1 {[%clk 0:00:03]} 34. Rf8+ {[%clk 0:01:16]} 1-0


[Site "https://www.chess.com"]

[Event "Titled Tuesday Blitz November 9 2021"]
[White "Mammadov, Zaur"]
[Black "Le Goff, Ronan"]
[WhiteFideId "13401033"]
[BlackFideId "612073"]
[WhiteElo "2417"]
[BlackElo "2276"]
[Result "1-0"]
[Round "06"]
[TimeControl "180+1"]
[Date "2021.11.09"]
[WhiteClock "0:00:25"]
[BlackClock "0:00:16"]

1. e4 {[%clk 0:03:00]}  e5 {[%clk 0:02:59]} 2. Nf3 {[%clk 0:02:59]}  Nc6 {[%clk 0:02:59]} 3. Nc3 {[%clk 0:03:00]}  Nf6 {[%clk 0:02:58]} 4. Be2 {[%clk 0:03:01]}  d5 {[%clk 0:02:57]} 5. exd5 {[%clk 0:03:01]}  Nxd5 {[%clk 0:02:58]} 6. O-O {[%clk 0:03:02]}  Nxc3 {[%clk 0:02:58]} 7. bxc3 {[%clk 0:03:03]}  Be7 {[%clk 0:02:56]} 8. Bb5 {[%clk 0:03:02]}  e4 {[%clk 0:02:53]} 9. Nd4 {[%clk 0:02:51]}  Bd7 {[%clk 0:02:52]} 10. Bxc6 {[%clk 0:02:44]}  bxc6 {[%clk 0:02:53]} 11. Re1 {[%clk 0:02:43]}  f5 {[%clk 0:02:50]} 12. d3 {[%clk 0:02:39]}  c5 {[%clk 0:02:41]} 13. Nb3 {[%clk 0:02:33]}  c4 {[%clk 0:02:35]} 14. Nd4 {[%clk 0:02:23]}  c5 {[%clk 0:02:29]} 15. Ne2 {[%clk 0:02:23]}  cxd3 {[%clk 0:02:25]} 16. cxd3 {[%clk 0:02:24]}  O-O {[%clk 0:01:46]} 17. dxe4 {[%clk 0:02:20]}  fxe4 {[%clk 0:01:45]} 18. Ng3 {[%clk 0:02:17]}  Bc6 {[%clk 0:01:40]} 19. Qg4 {[%clk 0:02:08]}  Bf6 {[%clk 0:01:29]} 20. Qe6+ {[%clk 0:01:59]}  Kh8 {[%clk 0:01:27]} 21. Qxc6 {[%clk 0:01:59]}  Bxc3 {[%clk 0:01:26]} 22. Be3 {[%clk 0:01:59]}  Bxa1 {[%clk 0:01:17]} 23. Rxa1 {[%clk 0:01:58]}  Rc8 {[%clk 0:01:13]} 24. Qxe4 {[%clk 0:01:58]}  c4 {[%clk 0:01:12]} 25. Bd4 {[%clk 0:01:51]}  c3 {[%clk 0:01:07]} 26. Nh5 {[%clk 0:01:51]}  Rf7 {[%clk 0:01:03]} 27. Rc1 {[%clk 0:01:39]}  Qg5 {[%clk 0:00:57]} 28. Re1 {[%clk 0:01:14]}  c2 {[%clk 0:00:44]} 29. Qxc2 {[%clk 0:00:49]}  Rd8 {[%clk 0:00:43]} 30. Qe4 {[%clk 0:00:36]}  h6 {[%clk 0:00:40]} 31. Nxg7 {[%clk 0:00:30]}  Rxg7 {[%clk 0:00:23]} 32. Bxg7+ {[%clk 0:00:29]}  Qxg7 {[%clk 0:00:22]} 33. g3 {[%clk 0:00:30]}  Rd2 {[%clk 0:00:16]} 34. a4 {[%clk 0:00:28]}  Qf6 {[%clk 0:00:15]} 35. Qe8+ {[%clk 0:00:26]}  Kg7 {[%clk 0:00:15]} 36. Re7+ {[%clk 0:00:26]}  Qxe7 {[%clk 0:00:15]} 37. Qxe7+ {[%clk 0:00:27]}  Kg6 {[%clk 0:00:16]} 38. Qe6+ {[%clk 0:00:27]}  Kg7 {[%clk 0:00:16]} 39. Qe7+ {[%clk 0:00:27]}  Kg6 {[%clk 0:00:16]} 40. Qxa7 {[%clk 0:00:28]}  Rd6 {[%clk 0:00:16]} 41. Qc7 {[%clk 0:00:27]}  Re6 {[%clk 0:00:16]} 42. a5 {[%clk 0:00:27]}  h5 {[%clk 0:00:16]} 43. Qc2+ {[%clk 0:00:26]}  Kg5 {[%clk 0:00:16]} 44. Qc5+ {[%clk 0:00:26]}  Kg4 {[%clk 0:00:16]} 45. Kg2 {[%clk 0:00:25]}  h4 {[%clk 0:00:16]} 46. h3# {[%clk 0:00:25]} 1-0


[Site "https://www.chess.com"]

[Event "Titled Tuesday Blitz November 9 2021"]
[White "Moroni, Luca Jr"]
[Black "Petrovskyi, Vadym"]
[WhiteFideId "865834"]
[BlackFideId "14165210"]
[WhiteElo "2491"]
[BlackElo "2377"]
[Result "1-0"]
[Round "06"]
[TimeControl "180+1"]
[Date "2021.11.09"]
[WhiteClock "0:00:40"]
[BlackClock "0:00:08"]

1. d4 {[%clk 0:03:00]}  Nf6 {[%clk 0:02:59]} 2. c4 {[%clk 0:03:00]}  g6 {[%clk 0:02:58]} 3. Nc3 {[%clk 0:03:00]}  Bg7 {[%clk 0:02:59]} 4. e4 {[%clk 0:03:01]}  d6 {[%clk 0:02:58]} 5. Bd3 {[%clk 0:03:01]}  O-O {[%clk 0:02:58]} 6. Nge2 {[%clk 0:03:01]}  e5 {[%clk 0:02:56]} 7. d5 {[%clk 0:03:01]}  a5 {[%clk 0:02:56]} 8. O-O {[%clk 0:03:01]}  Na6 {[%clk 0:02:55]} 9. a3 {[%clk 0:03:00]}  Nc5 {[%clk 0:02:55]} 10. Bc2 {[%clk 0:03:00]}  c6 {[%clk 0:02:55]} 11. Be3 {[%clk 0:02:59]}  cxd5 {[%clk 0:02:55]} 12. cxd5 {[%clk 0:02:58]}  Bd7 {[%clk 0:02:53]} 13. f3 {[%clk 0:02:57]}  Ne8 {[%clk 0:02:51]} 14. b4 {[%clk 0:02:56]}  axb4 {[%clk 0:02:50]} 15. axb4 {[%clk 0:02:57]}  Rxa1 {[%clk 0:02:48]} 16. Qxa1 {[%clk 0:02:58]}  Na6 {[%clk 0:02:49]} 17. Rb1 {[%clk 0:02:55]}  f5 {[%clk 0:02:45]} 18. Ba4 {[%clk 0:02:54]}  Nf6 {[%clk 0:02:43]} 19. h3 {[%clk 0:02:17]}  Nh5 {[%clk 0:02:35]} 20. Bxd7 {[%clk 0:02:06]}  Qxd7 {[%clk 0:02:35]} 21. Qa4 {[%clk 0:01:55]}  Qe7 {[%clk 0:02:03]} 22. b5 {[%clk 0:01:37]}  Nc5 {[%clk 0:02:03]} 23. Bxc5 {[%clk 0:01:37]}  dxc5 {[%clk 0:02:03]} 24. Qc4 {[%clk 0:01:37]}  Kh8 {[%clk 0:01:59]} 25. b6 {[%clk 0:01:32]}  Bh6 {[%clk 0:01:47]} 26. Kh1 {[%clk 0:01:25]}  Nf4 {[%clk 0:01:12]} 27. Nxf4 {[%clk 0:01:23]}  Bxf4 {[%clk 0:01:11]} 28. Rd1 {[%clk 0:01:22]}  Rd8 {[%clk 0:01:09]} 29. d6 {[%clk 0:00:55]}  Rxd6 {[%clk 0:00:35]} 30. Rxd6 {[%clk 0:00:55]}  Qxd6 {[%clk 0:00:36]} 31. Qf7 {[%clk 0:00:56]}  Bg5 {[%clk 0:00:13]} 32. Nd5 {[%clk 0:00:48]}  fxe4 {[%clk 0:00:10]} 33. fxe4 {[%clk 0:00:48]}  c4 {[%clk 0:00:09]} 34. Qxb7 {[%clk 0:00:44]}  Qa3 {[%clk 0:00:09]} 35. Qb8+ {[%clk 0:00:40]}  Kg7 {[%clk 0:00:08]} 36. Qa7+ {[%clk 0:00:40]} 1-0


[Site "https://www.chess.com"]

[Event "Titled Tuesday Blitz November 9 2021"]
[White "Moskalenko, Alexander"]
[Black "Lewtak, Damian"]
[WhiteFideId "4155351"]
[BlackFideId "1141724"]
[WhiteElo "2515"]
[BlackElo "2203"]
[Result "1-0"]
[Round "06"]
[TimeControl "180+1"]
[Date "2021.11.09"]
[WhiteClock "0:00:13"]
[BlackClock "0:00:04"]

1. d4 {[%clk 0:03:00]}  d6 {[%clk 0:02:59]} 2. e4 {[%clk 0:03:00]}  e5 {[%clk 0:02:59]} 3. Nf3 {[%clk 0:02:59]}  Nd7 {[%clk 0:02:52]} 4. Bc4 {[%clk 0:02:58]}  Be7 {[%clk 0:02:37]} 5. Nc3 {[%clk 0:02:57]}  Ngf6 {[%clk 0:02:34]} 6. a4 {[%clk 0:02:36]}  O-O {[%clk 0:02:33]} 7. O-O {[%clk 0:02:35]}  Nb6 {[%clk 0:02:29]} 8. Bb3 {[%clk 0:02:34]}  Bg4 {[%clk 0:02:29]} 9. dxe5 {[%clk 0:02:31]}  Bxf3 {[%clk 0:02:29]} 10. Qxf3 {[%clk 0:02:32]}  dxe5 {[%clk 0:02:29]} 11. Rd1 {[%clk 0:02:30]}  Qc8 {[%clk 0:02:26]} 12. Qg3 {[%clk 0:02:19]}  Qg4 {[%clk 0:02:15]} 13. Qxg4 {[%clk 0:02:18]}  Nxg4 {[%clk 0:02:15]} 14. a5 {[%clk 0:02:19]}  Nc8 {[%clk 0:02:11]} 15. Rd7 {[%clk 0:01:44]}  Bc5 {[%clk 0:01:56]} 16. Rxc7 {[%clk 0:01:44]}  Bxf2+ {[%clk 0:01:54]} 17. Kf1 {[%clk 0:01:44]}  Bd4 {[%clk 0:01:53]} 18. h3 {[%clk 0:01:35]}  Ne3+ {[%clk 0:01:42]} 19. Bxe3 {[%clk 0:01:35]}  Bxe3 {[%clk 0:01:42]} 20. Rd1 {[%clk 0:01:25]}  Bd4 {[%clk 0:01:39]} 21. Nb5 {[%clk 0:01:25]}  Bxb2 {[%clk 0:01:33]} 22. Rxb7 {[%clk 0:01:23]}  a6 {[%clk 0:01:19]} 23. Ke2 {[%clk 0:01:15]}  axb5 {[%clk 0:00:58]} 24. Rxf7 {[%clk 0:01:14]}  Nd6 {[%clk 0:00:58]} 25. Rxf8+ {[%clk 0:01:11]}  Kxf8 {[%clk 0:00:58]} 26. Rxd6 {[%clk 0:01:11]}  Rxa5 {[%clk 0:00:56]} 27. Rd7 {[%clk 0:01:11]}  Bd4 {[%clk 0:00:45]} 28. Rf7+ {[%clk 0:01:02]}  Ke8 {[%clk 0:00:45]} 29. Rxg7 {[%clk 0:01:02]}  Ra7 {[%clk 0:00:46]} 30. Rg8+ {[%clk 0:00:59]}  Ke7 {[%clk 0:00:46]} 31. Kf3 {[%clk 0:00:52]}  Kf6 {[%clk 0:00:43]} 32. g3 {[%clk 0:00:52]}  Ra1 {[%clk 0:00:39]} 33. Kg4 {[%clk 0:00:45]}  Rg1 {[%clk 0:00:31]} 34. h4 {[%clk 0:00:44]}  Bc3 {[%clk 0:00:28]} 35. Rf8+ {[%clk 0:00:36]}  Kg7 {[%clk 0:00:26]} 36. Rf7+ {[%clk 0:00:36]}  Kh6 {[%clk 0:00:24]} 37. Rf3 {[%clk 0:00:37]}  Be1 {[%clk 0:00:23]} 38. Be6 {[%clk 0:00:20]}  b4 {[%clk 0:00:19]} 39. Bf5 {[%clk 0:00:20]}  Kg7 {[%clk 0:00:17]} 40. Kh3 {[%clk 0:00:21]}  Bc3 {[%clk 0:00:15]} 41. g4 {[%clk 0:00:18]}  Rd1 {[%clk 0:00:12]} 42. Be6 {[%clk 0:00:17]}  Rd6 {[%clk 0:00:11]} 43. Bb3 {[%clk 0:00:16]}  Rf6 {[%clk 0:00:10]} 44. Rd3 {[%clk 0:00:15]}  Rf1 {[%clk 0:00:05]} 45. g5 {[%clk 0:00:15]}  Rh1+ {[%clk 0:00:04]} 46. Kg4 {[%clk 0:00:15]}  Be1 {[%clk 0:00:04]} 47. Rd7+ {[%clk 0:00:14]}  Kh8 {[%clk 0:00:04]} 48. Rd8+ {[%clk 0:00:13]} 1-0


[Site "https://www.chess.com"]

[Event "Titled Tuesday Blitz November 9 2021"]
[White "Ozen, Deniz"]
[Black "Erdogdu, Mert"]
[WhiteFideId "6349196"]
[BlackFideId "6301495"]
[WhiteElo "2326"]
[BlackElo "2485"]
[Result "1/2-1/2"]
[Round "06"]
[TimeControl "180+1"]
[Date "2021.11.09"]
[WhiteClock "0:00:25"]
[BlackClock "0:00:11"]

1. d4 {[%clk 0:03:00]}  d5 {[%clk 0:02:58]} 2. Nf3 {[%clk 0:03:00]}  e6 {[%clk 0:02:58]} 3. Bf4 {[%clk 0:02:59]}  Bd6 {[%clk 0:02:57]} 4. Bg3 {[%clk 0:03:00]}  Nf6 {[%clk 0:02:57]} 5. Nbd2 {[%clk 0:03:00]}  c5 {[%clk 0:02:58]} 6. e3 {[%clk 0:03:00]}  Qc7 {[%clk 0:02:58]} 7. c3 {[%clk 0:03:01]}  Nbd7 {[%clk 0:02:58]} 8. Bd3 {[%clk 0:03:00]}  O-O {[%clk 0:02:58]} 9. e4 {[%clk 0:02:59]}  dxe4 {[%clk 0:02:56]} 10. Nxe4 {[%clk 0:03:00]}  Nxe4 {[%clk 0:02:56]} 11. Bxe4 {[%clk 0:03:01]}  Nf6 {[%clk 0:02:41]} 12. Bc2 {[%clk 0:02:57]}  Rd8 {[%clk 0:02:29]} 13. Qe2 {[%clk 0:02:48]}  b5 {[%clk 0:02:03]} 14. dxc5 {[%clk 0:02:42]}  Qxc5 {[%clk 0:01:56]} 15. Bxd6 {[%clk 0:02:24]}  Rxd6 {[%clk 0:01:52]} 16. O-O {[%clk 0:02:24]}  Bb7 {[%clk 0:01:52]} 17. Rad1 {[%clk 0:02:24]}  Rad8 {[%clk 0:01:52]} 18. Rxd6 {[%clk 0:02:24]}  Rxd6 {[%clk 0:01:52]} 19. Rd1 {[%clk 0:02:24]}  Rxd1+ {[%clk 0:01:35]} 20. Qxd1 {[%clk 0:02:25]}  g6 {[%clk 0:01:08]} 21. Qd4 {[%clk 0:02:19]}  Qxd4 {[%clk 0:01:03]} 22. Nxd4 {[%clk 0:02:20]}  a6 {[%clk 0:01:03]} 23. a4 {[%clk 0:02:20]}  bxa4 {[%clk 0:01:03]} 24. Bxa4 {[%clk 0:02:21]}  Kf8 {[%clk 0:01:00]} 25. f4 {[%clk 0:02:19]}  Nd5 {[%clk 0:00:59]} 26. g3 {[%clk 0:02:18]}  Ke7 {[%clk 0:00:58]} 27. Kf2 {[%clk 0:02:17]}  Kd6 {[%clk 0:00:59]} 28. Bc2 {[%clk 0:02:12]}  f6 {[%clk 0:00:57]} 29. Ne2 {[%clk 0:02:06]}  e5 {[%clk 0:00:56]} 30. fxe5+ {[%clk 0:02:06]}  Kxe5 {[%clk 0:00:55]} 31. Bb3 {[%clk 0:02:00]}  a5 {[%clk 0:00:54]} 32. Nd4 {[%clk 0:01:57]}  g5 {[%clk 0:00:51]} 33. Nf3+ {[%clk 0:01:55]}  Kd6 {[%clk 0:00:49]} 34. Nd4 {[%clk 0:01:54]}  Ke5 {[%clk 0:00:48]} 35. Bc2 {[%clk 0:01:54]}  h6 {[%clk 0:00:43]} 36. Nf5 {[%clk 0:01:48]}  h5 {[%clk 0:00:32]} 37. Ng7 {[%clk 0:01:46]}  h4 {[%clk 0:00:32]} 38. gxh4 {[%clk 0:01:47]}  gxh4 {[%clk 0:00:33]} 39. Nf5 {[%clk 0:01:47]}  h3 {[%clk 0:00:30]} 40. Kg3 {[%clk 0:01:42]}  Bc8 {[%clk 0:00:30]} 41. Nd4 {[%clk 0:01:41]}  Ne3 {[%clk 0:00:29]} 42. Bd3 {[%clk 0:01:33]}  Bd7 {[%clk 0:00:28]} 43. Nc2 {[%clk 0:01:08]}  Nd1 {[%clk 0:00:23]} 44. b4 {[%clk 0:00:56]}  axb4 {[%clk 0:00:20]} 45. cxb4 {[%clk 0:00:57]}  Nc3 {[%clk 0:00:17]} 46. Bf1 {[%clk 0:00:50]}  Ne4+ {[%clk 0:00:16]} 47. Kh4 {[%clk 0:00:46]}  Ng5 {[%clk 0:00:14]} 48. b5 {[%clk 0:00:40]}  Kd5 {[%clk 0:00:13]} 49. Be2 {[%clk 0:00:30]}  Kc5 {[%clk 0:00:13]} 50. Ne3 {[%clk 0:00:24]}  Bxb5 {[%clk 0:00:11]} 51. Bxb5 {[%clk 0:00:24]}  Kxb5 {[%clk 0:00:11]} 52. Nd5 {[%clk 0:00:25]}  Nf3+ {[%clk 0:00:10]} 53. Kxh3 {[%clk 0:00:25]}  Nxh2 {[%clk 0:00:11]} 54. Nxf6 {[%clk 0:00:25]} 1/2-1/2


[Site "https://www.chess.com"]

[Event "Titled Tuesday Blitz November 9 2021"]
[White "Svane, Frederik"]
[Black "Tanenbaum, Zachary"]
[WhiteFideId "12923044"]
[BlackFideId "2060850"]
[WhiteElo "2459"]
[BlackElo "2168"]
[Result "1-0"]
[Round "06"]
[TimeControl "180+1"]
[Date "2021.11.09"]
[WhiteClock "0:01:58"]
[BlackClock "0:00:14"]

1. e4 {[%clk 0:03:00]}  e5 {[%clk 0:02:59]} 2. Nf3 {[%clk 0:03:01]}  Nc6 {[%clk 0:03:00]} 3. Bb5 {[%clk 0:03:01]}  a6 {[%clk 0:03:00]} 4. Ba4 {[%clk 0:03:02]}  d6 {[%clk 0:03:01]} 5. O-O {[%clk 0:03:01]}  Nf6 {[%clk 0:03:02]} 6. d3 {[%clk 0:02:54]}  b5 {[%clk 0:03:01]} 7. Bb3 {[%clk 0:02:54]}  Na5 {[%clk 0:03:01]} 8. Nc3 {[%clk 0:02:51]}  Be7 {[%clk 0:03:00]} 9. h3 {[%clk 0:02:50]}  O-O {[%clk 0:03:00]} 10. Be3 {[%clk 0:02:50]}  Bb7 {[%clk 0:02:54]} 11. Re1 {[%clk 0:02:49]}  Nd7 {[%clk 0:02:43]} 12. Nd5 {[%clk 0:02:38]}  Nxb3 {[%clk 0:02:40]} 13. axb3 {[%clk 0:02:38]}  f5 {[%clk 0:02:18]} 14. c4 {[%clk 0:02:39]}  f4 {[%clk 0:01:11]} 15. Bd2 {[%clk 0:02:37]}  c5 {[%clk 0:01:05]} 16. Ba5 {[%clk 0:02:31]}  Qe8 {[%clk 0:01:00]} 17. Nc7 {[%clk 0:02:31]}  Qf7 {[%clk 0:00:48]} 18. Nxa8 {[%clk 0:02:31]}  Bxa8 {[%clk 0:00:48]} 19. cxb5 {[%clk 0:02:07]}  axb5 {[%clk 0:00:49]} 20. b4 {[%clk 0:02:07]}  g5 {[%clk 0:00:42]} 21. bxc5 {[%clk 0:02:07]}  Nxc5 {[%clk 0:00:38]} 22. Bb4 {[%clk 0:02:06]}  Qf6 {[%clk 0:00:19]} 23. d4 {[%clk 0:02:00]}  Nxe4 {[%clk 0:00:17]} 24. dxe5 {[%clk 0:01:58]}  dxe5 {[%clk 0:00:13]} 25. Bxe7 {[%clk 0:01:58]}  Qxe7 {[%clk 0:00:14]} 26. Rxa8 {[%clk 0:01:58]}  Rxa8 {[%clk 0:00:14]} 27. Qd5+ {[%clk 0:01:58]} 1-0


[Site "https://www.chess.com"]

[Event "Titled Tuesday Blitz November 9 2021"]
[White "Tari, Aryan"]
[Black "Nakamura, Hikaru"]
[WhiteFideId "1510045"]
[BlackFideId "2016192"]
[WhiteElo "2656"]
[BlackElo "2884"]
[Result "0-1"]
[Round "06"]
[TimeControl "180+1"]
[Date "2021.11.09"]
[WhiteClock "0:00:24"]
[BlackClock "0:00:49"]

1. e4 {[%clk 0:03:00]}  g6 {[%clk 0:02:58]} 2. d4 {[%clk 0:02:59]}  Bg7 {[%clk 0:02:59]} 3. Nf3 {[%clk 0:02:55]}  d6 {[%clk 0:02:56]} 4. c3 {[%clk 0:02:55]}  Nd7 {[%clk 0:02:56]} 5. Bd3 {[%clk 0:02:55]}  e5 {[%clk 0:02:56]} 6. O-O {[%clk 0:02:54]}  Ngf6 {[%clk 0:02:57]} 7. Re1 {[%clk 0:02:52]}  O-O {[%clk 0:02:56]} 8. Nbd2 {[%clk 0:02:51]}  b6 {[%clk 0:02:56]} 9. Nf1 {[%clk 0:02:51]}  Bb7 {[%clk 0:02:56]} 10. a4 {[%clk 0:02:51]}  Re8 {[%clk 0:02:54]} 11. Ng3 {[%clk 0:02:46]}  a6 {[%clk 0:02:50]} 12. h3 {[%clk 0:02:45]}  exd4 {[%clk 0:02:46]} 13. cxd4 {[%clk 0:02:43]}  c5 {[%clk 0:02:47]} 14. d5 {[%clk 0:02:28]}  Rc8 {[%clk 0:02:26]} 15. Bf4 {[%clk 0:02:23]}  c4 {[%clk 0:02:26]} 16. Bf1 {[%clk 0:02:22]}  Nc5 {[%clk 0:02:23]} 17. Qc2 {[%clk 0:02:16]}  b5 {[%clk 0:02:19]} 18. axb5 {[%clk 0:02:14]}  axb5 {[%clk 0:02:19]} 19. Rad1 {[%clk 0:02:14]}  Qb6 {[%clk 0:02:05]} 20. Be3 {[%clk 0:02:10]}  Qd8 {[%clk 0:02:01]} 21. Bd4 {[%clk 0:01:56]}  Nb3 {[%clk 0:01:58]} 22. Bc3 {[%clk 0:01:54]}  Qb6 {[%clk 0:01:58]} 23. Bb4 {[%clk 0:01:44]}  Nd7 {[%clk 0:01:55]} 24. Ne2 {[%clk 0:01:32]}  Ndc5 {[%clk 0:01:51]} 25. Nf4 {[%clk 0:01:19]}  Na4 {[%clk 0:01:48]} 26. Rb1 {[%clk 0:01:13]}  Re7 {[%clk 0:01:33]} 27. h4 {[%clk 0:00:59]}  Rce8 {[%clk 0:01:30]} 28. h5 {[%clk 0:00:59]}  Nac5 {[%clk 0:01:25]} 29. Bxc5 {[%clk 0:00:32]}  Qxc5 {[%clk 0:01:14]} 30. Re3 {[%clk 0:00:26]}  Bh6 {[%clk 0:00:51]} 31. g3 {[%clk 0:00:26]}  Bxf4 {[%clk 0:00:48]} 32. gxf4 {[%clk 0:00:27]}  Bxd5 {[%clk 0:00:49]} 33. exd5 {[%clk 0:00:26]}  Rxe3 {[%clk 0:00:49]} 34. fxe3 {[%clk 0:00:27]}  Rxe3 {[%clk 0:00:50]} 35. Qf2 {[%clk 0:00:24]}  Rxf3 {[%clk 0:00:49]} 0-1


[Site "https://www.chess.com"]

[Event "Titled Tuesday Blitz November 9 2021"]
[White "Tillyaev, Ulugbek"]
[Black "Nagy, Gabor"]
[WhiteFideId "14202441"]
[BlackFideId "737119"]
[WhiteElo "2341"]
[BlackElo "2534"]
[Result "1-0"]
[Round "06"]
[TimeControl "180+1"]
[Date "2021.11.09"]
[WhiteClock "0:00:27"]
[BlackClock "0:00:57"]

1. d4 {[%clk 0:02:54]}  Nf6 {[%clk 0:02:59]} 2. c4 {[%clk 0:02:54]}  g6 {[%clk 0:02:59]} 3. Nc3 {[%clk 0:02:51]}  Bg7 {[%clk 0:03:00]} 4. Nf3 {[%clk 0:02:52]}  O-O {[%clk 0:02:59]} 5. g3 {[%clk 0:02:52]}  d6 {[%clk 0:02:59]} 6. Bg2 {[%clk 0:02:53]}  Nbd7 {[%clk 0:02:59]} 7. O-O {[%clk 0:02:52]}  e5 {[%clk 0:03:00]} 8. e4 {[%clk 0:02:53]}  c6 {[%clk 0:03:00]} 9. h3 {[%clk 0:02:53]}  Qa5 {[%clk 0:03:00]} 10. Re1 {[%clk 0:02:46]}  exd4 {[%clk 0:02:59]} 11. Nxd4 {[%clk 0:02:47]}  Ne5 {[%clk 0:03:00]} 12. Nb3 {[%clk 0:02:44]}  Qc7 {[%clk 0:02:52]} 13. c5 {[%clk 0:02:24]}  dxc5 {[%clk 0:02:49]} 14. Nxc5 {[%clk 0:02:25]}  b6 {[%clk 0:02:45]} 15. Nb3 {[%clk 0:02:22]}  Ba6 {[%clk 0:02:42]} 16. Bf4 {[%clk 0:02:21]}  Rad8 {[%clk 0:02:39]} 17. Qc2 {[%clk 0:02:13]}  Nh5 {[%clk 0:02:36]} 18. Nd5 {[%clk 0:02:05]}  Rxd5 {[%clk 0:02:02]} 19. exd5 {[%clk 0:02:02]}  Nxf4 {[%clk 0:02:02]} 20. gxf4 {[%clk 0:02:02]}  Nd3 {[%clk 0:02:02]} 21. dxc6 {[%clk 0:01:58]}  Nxe1 {[%clk 0:01:55]} 22. Rxe1 {[%clk 0:01:58]}  Qxf4 {[%clk 0:01:56]} 23. Re4 {[%clk 0:01:30]}  Qd6 {[%clk 0:01:51]} 24. Ra4 {[%clk 0:01:24]}  Bb5 {[%clk 0:01:37]} 25. Rxa7 {[%clk 0:01:22]}  Re8 {[%clk 0:01:37]} 26. Nd2 {[%clk 0:00:50]}  Re1+ {[%clk 0:01:28]} 27. Nf1 {[%clk 0:00:49]}  Be5 {[%clk 0:01:19]} 28. c7 {[%clk 0:00:44]}  Bxf1 {[%clk 0:01:16]} 29. c8=Q+ {[%clk 0:00:43]}  Kg7 {[%clk 0:01:16]} 30. Bxf1 {[%clk 0:00:40]}  Qf6 {[%clk 0:01:12]} 31. Qg4 {[%clk 0:00:29]}  h5 {[%clk 0:01:10]} 32. Qg2 {[%clk 0:00:28]}  Bd4 {[%clk 0:01:08]} 33. Rd7 {[%clk 0:00:27]}  Bc5 {[%clk 0:01:08]} 34. Rd1 {[%clk 0:00:27]}  Re5 {[%clk 0:01:06]} 35. Qc3 {[%clk 0:00:28]}  b5 {[%clk 0:01:04]} 36. Qgg3 {[%clk 0:00:24]}  Rg5 {[%clk 0:00:53]} 37. Qxf6+ {[%clk 0:00:24]}  Kxf6 {[%clk 0:00:54]} 38. Qxg5+ {[%clk 0:00:25]}  Kxg5 {[%clk 0:00:54]} 39. Rd5+ {[%clk 0:00:26]}  Kh4 {[%clk 0:00:54]} 40. Rxc5 {[%clk 0:00:27]}  f5 {[%clk 0:00:54]} 41. Rxb5 {[%clk 0:00:26]}  f4 {[%clk 0:00:55]} 42. Rb4 {[%clk 0:00:25]}  g5 {[%clk 0:00:55]} 43. Rxf4+ {[%clk 0:00:26]}  gxf4 {[%clk 0:00:55]} 44. a4 {[%clk 0:00:26]}  f3 {[%clk 0:00:55]} 45. a5 {[%clk 0:00:27]}  Kg5 {[%clk 0:00:56]} 46. a6 {[%clk 0:00:28]}  Kh4 {[%clk 0:00:55]} 47. a7 {[%clk 0:00:28]}  Kg5 {[%clk 0:00:56]} 48. a8=Q {[%clk 0:00:28]}  Kh4 {[%clk 0:00:57]} 49. Qd8# {[%clk 0:00:27]} 1-0


[Site "https://www.chess.com"]